{"text_format":"1","workbook":"xlsx","n_sheets":5,"sheets":["使用開始終了画面","購入申込書入力・申込方法","１台登録購入申込書","２台登録購入申込書","３台登録購入申込書"],"not_rendered":{"charts":0,"images":1,"macros":1,"external_links":0,"defined_names":5,"comments":3,"pivot_tables":0},"unopened":[],"bounds":{"document_bytes":16777216,"sheet_cells":100000,"rows_first":2000,"rows_last":500,"rows_between":2000,"halvings":0,"cell_chars":16384,"cell_head_chars":4096},"cells_cut":0,"cells_raw":0,"read":"whole","date_system":"1900"}

{"sheet":"使用開始終了画面","index":0,"n_rows":0,"n_cols":0,"rows_kept":0,"cut":false,"hidden":false,"merged":[]}

{"sheet":"購入申込書入力・申込方法","index":1,"n_rows":25,"n_cols":3,"rows_kept":25,"cut":false,"hidden":false,"merged":[[1,1,1,12],[7,2,20,12],[24,2,31,12]]}
[]
[null,"210人60クラス３台時間割編成ファイルの購入申し込み書の入力・申込方法"]
[]
[]
[]
[null,"１．使用パソコンの登録方法、購入申込書入力及び注意事項"]
[]
[null,null,"   このファイルを登録したいパソコン上に順次コピーして開き、そのパソコン上で、３台登録購入申込書のシートの「３台ナンバー登録実行ボタン」をクリックしていただければ、使用いただくパソコンの登録番号が1台目、２台目、３台目と順次登録されます。なお、登録するパソコンを間違えて登録した場合には、登録番号を消去いただき登録予定の正しいパソコン上で、「３台ナンバー登録実行ボタン」をクリックしていただければ再度登録し直すことが出来ます。必ず３台のパソコンを登録してください。３台のパソコンの登録がない場合にはその申込は無効とさせていただきます。１台しか登録しない場合には必ず１台購入申込のファイルを、２台しか登録しない場合には必ず２台購入申込のファイルをご使用ください。\n　また、３台登録購入申込書のシート上で購入申込者の郵便番号,住所,氏名,電話番号,メールアドレスおよび申込年月日を必ずご入力下さい。これらのうちのどれか１つでも入力ない場合は登録手続きはできなく、申し込みは無効となります。なお、ご自分のホームページを開設されていない場合には、ホームページアドレスは空欄のままで結構です。\n   購入金額はシート　　　　　　　　　　　　　　　の下側の合計金額に表示されています。"]
[]
[]
[]
[]
[]
[]
[]
[]
[]
[]
[]
[]
[]
[]
[null,"２．申込方法及び使用パソコン登録ファイルの送信"]
[]
[null,null,"  上記１の要領で使用パソコンの登録、購入申込書入力が済みましたら、このファイルをそのままメールの添付ファイルとして、下記送信先まで送信してください。\n　そして、下記代金振込先の口座に入金が確認でき次第、購入希望のシステムファイルをインストールするための２つのファイル\n「2010時間割編成システム（３台2010インストールファイル複写無し）.xlsm」\n「2010時間割編成システムPC３台ナンバー登録及びシステム購入申込書2010（インストール用）.xlsm」\nと２つのマニュアル\n「210人60クラス３台時間割編成ファイルの登録・書き換えマニュアル.pdf」\n「210人60クラス３台時間割編成ファイルの使用マニュアル.pdf」\nを当方からのメールの添付ファイルとして送信いたします。\n\n　　＜「ナンバー登録及びシステム購入申込書」ファイル送信先＞  vw4j4n@bma.biglobe.ne.jp\n　　＜ 　  代  　　　　　金  　　　　　振  　　　　　込 　 　　 　先 　 ＞　埼玉りそな銀行鴻巣支店\n                                                                            講座名義人　多田記一\n　　　　　　　　　　　　　　　                                            普通預金　　口座番号 １３３０３３１"]

{"sheet":"１台登録購入申込書","index":2,"n_rows":47,"n_cols":8,"rows_kept":47,"cut":false,"hidden":false,"merged":[[12,1,12,2],[12,3,12,6],[13,1,13,2],[13,3,13,6],[3,1,3,6],[4,5,4,6],[5,1,10,1],[5,3,5,6],[6,3,6,6],[7,3,7,6],[8,3,8,6],[9,3,9,6],[10,3,10,6],[21,2,21,3],[22,2,22,3],[23,2,23,3],[24,2,24,3],[17,1,17,6],[18,2,18,3],[19,2,19,3],[20,2,20,3],[29,2,29,3],[30,2,30,3],[31,2,31,3],[32,2,32,3],[25,2,25,3],[26,2,26,3],[27,2,27,3],[28,2,28,3],[37,2,37,3],[38,2,38,3],[39,2,39,3],[40,2,40,3],[33,2,33,3],[34,2,34,3],[35,2,35,3],[36,2,36,3],[45,2,45,3],[46,1,46,5],[41,2,41,3],[42,2,42,3],[43,2,43,3],[44,2,44,3]]}
[]
[]
[]
[null,"時間割編成システム  コンピュータ１台登録用購入申込書"]
[null,null,null,null,"（申込年月日）","平成＊＊年＊＊月＊＊日"]
[null,"購入申込者","郵便番号"]
[null,null,"住所"]
[null,null,"氏名"]
[null,null,"電話番号"]
[null,null,"ＰＣメールアドレス"]
[null,null,"ホームページアドレス"]
[]
[null,"コンピュータ",null,"登録ナンバー"]
[null,"１台",null,null,null,null,null,"3AC014F1CE951EA4KiitiTada"]
[]
[]
[]
[null,"購入申込システム"]
[null,"ＮＯ","システム名",null,"価格（税込）","購入希望","金額"]
[null,1,"時間割編成システムAdvaceNew１台登録Ver1.xlsm",null,null,null,{"$f":"E20*F20","v":0}]
[null,2,"時間割編成システム簡易版AdvanceNew１台登録Ver1.xlsm",null,null,null,0]
[null,3,"時間割コマ入力システムAdvanceNew１台登録Ver1.xlsm",null,null,null,0]
[null,4,"時間割編成システム制御AdvanceNew１台登録Ver1.xlsm",null,null,null,30000]
[null,5,null,null,null,null,0]
[null,6,null,null,null,null,0]
[null,7,null,null,null,null,0]
[null,8,null,null,null,null,0]
[null,9,null,null,null,null,0]
[null,10,null,null,null,null,0]
[null,11,null,null,null,null,0]
[null,12,null,null,null,null,0]
[null,13,null,null,null,null,0]
[null,14,null,null,null,null,0]
[null,15,null,null,null,null,0]
[null,16,null,null,null,null,0]
[null,17,null,null,null,null,0]
[null,18,null,null,null,null,0]
[null,19,null,null,null,null,0]
[null,20,null,null,null,null,0]
[null,21,null,null,null,null,0]
[null,22,null,null,null,null,0]
[null,23,null,null,null,null,0]
[null,24,null,null,null,null,0]
[null,25,null,null,null,null,0]
[null,26,null,null,null,null,0]
[null,27,null,null,null,null,0]
[null,"金額合計",null,null,null,null,{"$f":"SUM(G20:G46)","v":30000}]

{"sheet":"２台登録購入申込書","index":3,"n_rows":47,"n_cols":8,"rows_kept":47,"cut":false,"hidden":false,"merged":[[12,1,12,2],[12,3,12,6],[13,1,13,2],[13,3,13,6],[3,1,3,6],[4,5,4,6],[5,1,10,1],[5,3,5,6],[6,3,6,6],[7,3,7,6],[8,3,8,6],[9,3,9,6],[10,3,10,6],[19,2,19,3],[20,2,20,3],[21,2,21,3],[22,2,22,3],[14,1,14,2],[14,3,14,6],[17,1,17,6],[18,2,18,3],[27,2,27,3],[28,2,28,3],[29,2,29,3],[30,2,30,3],[23,2,23,3],[24,2,24,3],[25,2,25,3],[26,2,26,3],[35,2,35,3],[36,2,36,3],[37,2,37,3],[38,2,38,3],[31,2,31,3],[32,2,32,3],[33,2,33,3],[34,2,34,3],[43,2,43,3],[44,2,44,3],[45,2,45,3],[46,1,46,5],[39,2,39,3],[40,2,40,3],[41,2,41,3],[42,2,42,3]]}
[]
[]
[]
[null,"時間割編成システム  コンピュータ２台登録用システム購入申込書"]
[null,null,null,null,"（申込年月日）","平成＊＊年＊＊月＊＊日"]
[null,"購入申込者","郵便番号"]
[null,null,"住所"]
[null,null,"氏名"]
[null,null,"電話番号"]
[null,null,"ＰＣメールアドレス"]
[null,null,"ホームページアドレス"]
[]
[null,"コンピュータ",null,"登録ナンバー"]
[null,"１台目",null,null,null,null,null,"3AC014F1CE951EA4KiitiTada"]
[null,"2台目",null,null,null,null,null,"3AC014F1CE951EA4KiitiTada"]
[]
[]
[null,"購入申込システム"]
[null,"ＮＯ","システム名",null,"価格（税込）","購入希望","金額"]
[null,1,"時間割編成システムAdvaceNew２台登録Ver1.xlsm",null,null,null,{"$f":"E20*F20","v":0}]
[null,2,"時間割編成システム簡易版AdvanceNew２台登録Ver1.xlsm",null,null,null,0]
[null,3,"時間割コマ入力システムAdvanceNew２台登録Ver1.xlsm",null,null,null,0]
[null,4,"時間割編成システム制御AdvanceNew２台登録Ver1.xlsm",null,null,null,40000]
[null,5]
[null,6]
[null,7]
[null,8]
[null,9]
[null,10]
[null,11]
[null,12]
[null,13]
[null,14]
[null,15]
[null,16]
[null,17]
[null,18]
[null,19]
[null,20]
[null,21]
[null,22]
[null,23]
[null,24]
[null,25]
[null,26,null,null,{"$f":"'１台登録購入申込書'!E45*1.5","v":0}]
[null,27,null,null,{"$f":"'１台登録購入申込書'!E46*1.5","v":0}]
[null,"金額合計",null,null,null,null,{"$f":"SUM(G20:G46)","v":40000}]

{"sheet":"３台登録購入申込書","index":4,"n_rows":47,"n_cols":8,"rows_kept":47,"cut":false,"hidden":false,"merged":[[3,1,3,6],[4,5,4,6],[5,1,10,1],[5,3,5,6],[6,3,6,6],[7,3,7,6],[8,3,8,6],[9,3,9,6],[10,3,10,6],[14,1,14,2],[14,3,14,6],[15,1,15,2],[15,3,15,6],[12,1,12,2],[12,3,12,6],[13,1,13,2],[13,3,13,6],[21,2,21,3],[22,2,22,3],[23,2,23,3],[24,2,24,3],[17,1,17,6],[18,2,18,3],[19,2,19,3],[20,2,20,3],[29,2,29,3],[30,2,30,3],[31,2,31,3],[32,2,32,3],[25,2,25,3],[26,2,26,3],[27,2,27,3],[28,2,28,3],[37,2,37,3],[38,2,38,3],[39,2,39,3],[40,2,40,3],[33,2,33,3],[34,2,34,3],[35,2,35,3],[36,2,36,3],[45,2,45,3],[46,1,46,5],[41,2,41,3],[42,2,42,3],[43,2,43,3],[44,2,44,3]]}
[]
[]
[]
[null,"時間割編成システム  コンピュータ３台登録用購入申込書"]
[null,null,null,null,"（申込年月日）","平成＊＊年＊＊月＊＊日"]
[null,"購入申込者","郵便番号","365-0028"]
[null,null,"住所","埼玉県鴻巣市鴻巣１２７８－８"]
[null,null,"氏名","多田記一"]
[null,null,"電話番号","048-542-4625"]
[null,null,"ＰＣメールアドレス","vw4j4n@biglobe.ne.jp"]
[null,null,"ホームページアドレス"]
[]
[null,"コンピュータ",null,"登録ナンバー"]
[null,"１台目",null,"E4903057",null,null,null,"E4903057189AF4BA多田記一"]
[null,"2台目",null,"BAB5D522",null,null,null,"BAB5D52235FC0COwner"]
[null,"3台目",null,"4755C54",null,null,null,"4755C54B6B0F3FFPCUser"]
[]
[null,"購入申込システム"]
[null,"ＮＯ","システム名",null,"価格（税込）","購入希望","金額"]
[null,1,"時間割編成システムAdvaceNew３台登録Ver1.xlsm",null,{"$f":"'１台登録購入申込書'!E20*2","v":0},1]
[null,2,"時間割編成システム簡易版AdvanceNew３台登録Ver1.xlsm",null,{"$f":"'１台登録購入申込書'!E21*2","v":0},1]
[null,3,"時間割コマ入力システムAdvanceNew３台登録Ver1.xlsm",null,{"$f":"'１台登録購入申込書'!E22*2","v":0},1]
[null,4,"時間割編成システム制御AdvanceNew３台登録Ver1.xlsm",null,null,1]
[null,5,null,null,null,null,{"$f":"E24*F24","v":0}]
[null,6,null,null,null,null,0]
[null,7,null,null,null,null,0]
[null,8,null,null,null,null,0]
[null,9,null,null,null,null,0]
[null,10,null,null,null,null,0]
[null,11,null,null,null,null,0]
[null,12,null,null,null,null,0]
[null,13,null,null,null,null,0]
[null,14,null,null,null,null,0]
[null,15,null,null,null,null,0]
[null,16,null,null,null,null,0]
[null,17,null,null,null,null,0]
[null,18,null,null,null,null,0]
[null,19,null,null,null,null,0]
[null,20,null,null,null,null,0]
[null,21,null,null,null,null,0]
[null,22,null,null,null,null,0]
[null,23,null,null,null,null,0]
[null,24,null,null,null,null,0]
[null,25,null,null,null,null,0]
[null,26,null,null,null,null,0]
[null,27,null,null,null,null,0]
[null,"金額合計",null,null,null,null,25000]